{"text_format":"1","workbook":"xlsx","n_sheets":1,"sheets":["AUW"],"not_rendered":{"charts":0,"images":1,"macros":1,"external_links":0,"defined_names":2,"comments":0,"pivot_tables":0},"unopened":[],"bounds":{"document_bytes":16777216,"sheet_cells":100000,"rows_first":2000,"rows_last":500,"rows_between":2000,"halvings":0,"cell_chars":16384,"cell_head_chars":4096},"cells_cut":0,"cells_raw":0,"read":"whole","date_system":"1900"}

{"sheet":"AUW","index":0,"n_rows":59,"n_cols":13,"rows_kept":59,"cut":false,"hidden":false,"merged":[[8,6,8,12],[13,3,13,12],[12,3,12,12],[9,6,9,12],[57,0,57,1],[15,3,15,12],[16,3,16,12],[17,3,17,12],[14,3,14,11],[58,0,58,1],[50,0,50,1],[53,0,53,1],[54,0,54,1],[20,0,23,1],[49,0,49,1],[4,10,5,12],[6,2,6,12],[2,4,2,5],[3,4,3,5],[2,6,2,7],[3,6,3,7],[0,1,0,2],[51,0,51,1],[52,0,52,1],[60,2,60,11],[20,12,23,12],[21,10,23,10],[21,8,23,8],[21,11,23,11],[21,3,23,3],[21,6,23,6],[20,3,20,11],[57,2,57,3],[20,2,23,2],[21,4,23,4],[11,3,11,12],[6,0,6,1]]}
[null,"ALOHA UNITED WAY DEPOSIT SHEET \n"]
[]
[null,"File # 19 -",null,"Company"]
[null,"Account #",null,"Phone:"]
[null,null,null,null,null,null,null,null,null,null,"200 N. Vineyard Blvd., Suite 700, Honolulu, HI 96817\nPhone: 536-1951   \u009f   Fax: 543-2244"]
[]
["Select One",null,"Instructions"]
[]
[null,null,"1) Check Pledge Forms for:","\u009fiSignature",null,null,"\u009f For Credit Card: Number, Expiration, Billing Address, Phone"]
[null,"Check one  Method Of Payment below:",null,null,null,null,"\u009f For Automatic Transfer: Voided Check Attached"]
[]
[null,null,"2) Enter Pledges:","Enter name of employee and their annual pledge amount under the Method of Payment they chose."]
[null,"Cash",null,"If employee has multiple methods of payment, list employee on their own Deposit Sheet."]
[null,"Check ",null,"If employee has multiple methods of payment, list employee on their own Deposit Sheet."]
[null,"Credit Card",null,"Note: The yellow cells are protected with formulas and will not allow you to enter text.  These cells automatically calculate."]
[null,"Automatic Transfer","3) Make the Deposit:","Enclose with this sheet: Pledge form and if applicable cash, check, voided check."]
[null,"Payroll Deduction & Bill Me",null,"Schedule an appointment with an Aloha United Way representative and review all materials together."]
[null,null,null,"Upon completion of review, sign Deposit Sheet and make a copy for your records."]
[]
[]
["NAME OF EMPLOYEE",null,"Total Amount\nContributed","Annual Donation",null,null,null,null,null,null,null,null,"AUW USE"]
[null,null,null,"Payroll Deduction","Bill Me",null,"Automatic Transfer",null,"Credit Card",null,"Cash","Check"]
[]
[]
[1,null,{"$f":"SUM(D25:L25)","v":0}]
[2,null,0]
[3,null,0]
[4,null,0]
[5,null,0]
[6,null,0]
[7,null,0]
[8,null,0]
[9,null,0]
[10,null,0]
[11,null,0]
[12,null,0]
[13,null,0]
[14,null,0]
[15,null,0]
[16,null,0]
[17,null,0]
[18,null,0]
[19,null,0]
[20,null,0]
[21,null,0]
[22,null,0]
[23,null,0]
[24,null,0]
[25,null,0]
["Total Number of Pledges",null,0,{"$f":"COUNT(D25:D49)","v":0},{"$f":"COUNT(E25:E49)","v":0},null,0,null,0,null,0,0,0]
["Total Employee Gifts",null,{"$f":"SUM(C25:C49)","v":0},{"$f":"SUM(D25:D49)","v":0},{"$f":"SUM(E25:E49)","v":0},null,0,null,0,null,0,0]
["Special Event",null,{"$f":"K52+L52","v":0}]
["Corporate Gift",null,{"$f":"K53+L53","v":0}]
["Corporate Match",null,{"$f":"K54+L54","v":0}]
["GRAND TOTAL",null,{"$f":"SUM(C51:C54)","v":0},{"$f":"D51","v":0},{"$f":"E51","v":0},null,{"$f":"G51","v":0},null,{"$f":"I51","v":0},null,{"$f":"SUM(K51:K54)","v":0},{"$f":"SUM(L51:L54)","v":0}]
[null,null,null,null,null,{"$f":"SUM(F55+#REF!+F54)","v":{"$error":"#REF!"}},null,{"$f":"SUM(H55+#REF!+H54)","v":{"$error":"#REF!"}},null,{"$f":"SUM(J55+#REF!+J54)","v":{"$error":"#REF!"}}]
[]
["Campaign Coordinator's Name:",null,null,null,null,null,"Aloha United Way Representative:"]
["Signature:",null,null,null,null,null,"Signature:",null,null,null,"Date:"]